fUST/lending_fUST_20250827
["ID","MTS","AMOUNT","RATE_DAILY","PERIOD"]
[381547069,1756277444875,-190.124591,0.000308,7]
[381547071,1756277444884,-190.124591,0.000308,7]
[381547073,1756277444893,-194.813698,0.000308,7]
[381547075,1756277444903,-151.0,0.000308,7]
[381547077,1756277444911,-194.813698,0.000308,7]
[381547079,1756277444921,-194.813698,0.000308,7]
[381547081,1756277444930,-194.813698,0.000308,7]
[381547083,1756277444939,-151.0,0.000308,7]
[381547085,1756277444948,-151.0,0.000308,7]
[381547087,1756277444957,-151.0,0.000308,7]
[381547089,1756277444967,-401.00805918,0.00030841,2]
[381547091,1756277444977,-327.620169,0.00030846,7]
[381547093,1756277444986,-199.0,0.000309,120]
[381547095,1756277444995,-199.0,0.000309,120]
[381547097,1756277445004,-371.0,0.00030923,2]
[381547099,1756277445014,-516.978478,0.00030927,2]
[381547101,1756277445023,-1060.0,0.00030932,2]
[381547103,1756277445034,-401.00805918,0.00030941,2]
[381547105,1756277445043,-154.0,0.00031,120]
[381547107,1756277445055,-650.0,0.00031012,5]
[381547109,1756277445065,-866.0,0.00031017,2]
[381547111,1756277445074,-206.706763,0.00031021,2]
[381547113,1756277445087,-3019.62708437,0.00031061,5]
[381547116,1756277445102,-201.4531047,0.00031131,2]
[381547117,1756277445111,-371.0,0.00031139,2]
[381547120,1756277445120,-206.706763,0.000312,7]
[381547121,1756277445130,-1000.0,0.000312,6]
[381547123,1756277445139,-605.03205157,0.00031259,28]
[381547125,1756277445148,-3500.0,0.0003126,5]
[381547128,1756277445158,-866.0,0.00031291,2]
[381547129,1756277445167,-206.706763,0.0003145,10]
[381547131,1756277445177,-1160.0,0.00031479,2]
[381547134,1756277445186,-1627.0,0.00031483,7]
[381547136,1756277445195,-2049.0,0.00031497,50]
[381547138,1756277445204,-151.0,0.00031498,7]
[381547140,1756277445213,-151.0,0.00031498,7]
[381547142,1756277445222,-151.0,0.00031498,7]
[381547144,1756277445233,-151.0,0.00031498,7]
[381547146,1756277445242,-151.0,0.00031498,7]
[381547148,1756277445251,-151.0,0.00031498,7]
[381547150,1756277445260,-151.0,0.00031498,7]
[381547152,1756277445270,-151.0,0.00031498,7]
[381547154,1756277445279,-151.0,0.00031498,7]
[381547156,1756277445289,-151.0,0.00031498,7]
[381547158,1756277445297,-151.0,0.00031498,7]
[381547160,1756277445307,-151.0,0.00031498,7]
[381547163,1756277445316,-194.833902,0.00031498,7]
[381547167,1756277445325,-151.0,0.00031508,7]
[381547171,1756277445335,-151.0,0.00031508,7]
[381547173,1756277445344,-151.0,0.00031508,7]
[381547175,1756277445353,-500.0,0.00031508,7]
[381547176,1756277445362,-500.0,0.00031508,7]
[381547177,1756277445372,-500.0,0.00031508,7]
[381547178,1756277445382,-500.0,0.00031508,7]
[381547179,1756277445392,-151.0,0.00031508,7]
[381547180,1756277445401,-151.0,0.00031508,7]
[381547181,1756277445410,-151.0,0.00031508,7]
[381547182,1756277445419,-151.0,0.00031508,7]
[381547183,1756277445597,-151.0,0.00031508,7]
[381547184,1756277445608,-151.0,0.00031508,7]
[381547185,1756277445617,-152.230319,0.00031508,7]
[381547186,1756277445626,-151.0,0.00031508,7]
[381547187,1756277445635,-151.0,0.00031508,7]
[381547188,1756277445644,-166.058228,0.00031508,7]
[381547189,1756277445654,-152.303452,0.00031508,7]
[381547190,1756277445663,-151.0,0.00031508,7]
[381547191,1756277445672,-151.0,0.00031508,7]
[381547192,1756277445681,-151.0,0.00031508,7]
[381547193,1756277445690,-151.0,0.00031508,7]
[381547194,1756277445699,-151.0,0.00031508,7]
[381547195,1756277445709,-151.0,0.00031508,7]
[381547196,1756277445718,-151.0,0.00031508,7]
[381547197,1756277445727,-151.0,0.00031508,7]
[381547198,1756277445737,-151.0,0.00031508,7]
[381547200,1756277445746,-151.0,0.00031508,7]
[381547201,1756277445755,-151.0,0.00031508,7]
[381547202,1756277445764,-151.0,0.00031508,7]
[381547203,1756277445773,-151.0,0.00031508,7]
[381547205,1756277445783,-151.0,0.00031508,7]
[381547207,1756277445792,-220.000708,0.00031508,7]
[381547209,1756277445808,-207.79735,0.00031508,7]
[381547211,1756277445817,-207.79735,0.00031508,7]
[381547213,1756277445826,-207.79735,0.00031508,7]
[381547215,1756277445838,-207.79735,0.00031508,7]
[381547217,1756277445850,-207.79735,0.00031508,7]
[381547219,1756277445859,-207.79735,0.00031508,7]
[381547221,1756277445868,-207.79735,0.00031508,7]
[381547223,1756277445879,-207.79735,0.00031508,7]
[381547225,1756277445888,-165.477966,0.00031508,7]
[381547227,1756277445897,-165.477966,0.00031508,7]
[381547229,1756277445907,-165.477966,0.00031508,7]
[381547231,1756277445916,-165.477966,0.00031508,7]
[381547233,1756277445927,-165.477966,0.00031508,7]
[381547235,1756277445936,-165.477966,0.00031508,7]
[381547237,1756277445946,-165.477966,0.00031508,7]
[381547239,1756277445955,-165.477966,0.00031508,7]
[381547241,1756277445964,-254.036978,0.00031508,7]
[381547243,1756277445974,-254.036978,0.00031508,7]
[381547245,1756277445983,-254.036978,0.00031508,7]
[381547247,1756277445992,-254.036978,0.00031508,7]
[381547249,1756277446001,-254.036978,0.00031508,7]
[381547251,1756277446011,-254.036978,0.00031508,7]
[381547253,1756277446020,-254.036978,0.00031508,7]
[381547255,1756277446030,-254.036978,0.00031508,7]
[381547257,1756277446040,-151.0,0.00031508,7]
[381547259,1756277446049,-500.0,0.00031508,2]
[381547261,1756277446058,-500.0,0.00031508,10]
[381547263,1756277446067,-500.0,0.00031508,7]
[381547265,1756277446076,-500.0,0.00031508,2]
[381547267,1756277446086,-500.0,0.00031508,30]
[381547269,1756277446095,-244.01,0.00031508,30]
[381547271,1756277446104,-151.0,0.00031511,7]
[381547273,1756277446113,-151.0,0.00031511,7]
[381547275,1756277446122,-151.0,0.00031511,7]
[381547277,1756277446131,-151.0,0.00031511,7]
[381547279,1756277446140,-190.124591,0.00031511,7]
[381547281,1756277446149,-190.124591,0.00031511,7]
[381547283,1756277446158,-190.124591,0.00031511,7]
[381547285,1756277446167,-190.124591,0.00031511,7]
[381547287,1756277446176,-190.124591,0.00031511,7]
[381547289,1756277446185,-190.124591,0.00031511,7]
[381547291,1756277446194,-190.124591,0.00031511,7]
[381547292,1756277446204,-190.124591,0.00031511,7]
[381547295,1756277446213,-151.0,0.00031511,7]
[381547296,1756277446222,-151.0,0.00031511,7]
[381547298,1756277446232,-205.00087,0.00031511,7]
[381547300,1756277446241,-205.00087,0.00031511,7]
[381547302,1756277446250,-205.00087,0.00031511,7]
[381547304,1756277446260,-205.00087,0.00031511,7]
[381547306,1756277446269,-151.0,0.00031511,7]
[381547308,1756277446278,-151.0,0.00031511,7]
[381547310,1756277446288,-151.0,0.00031511,7]
[381547312,1756277446297,-151.0,0.00031511,7]
[381547314,1756277446306,-181.951389,0.00031511,7]
[381547316,1756277446316,-181.951389,0.00031511,7]
[381547318,1756277446325,-181.951389,0.00031511,7]
[381547320,1756277446335,-181.951389,0.00031511,7]
[381547322,1756277446344,-181.951389,0.00031511,7]
[381547325,1756277446355,-181.951389,0.00031511,7]
[381547326,1756277446364,-181.951389,0.00031511,7]
[381547328,1756277446373,-181.951389,0.00031511,7]
[381547330,1756277446383,-151.0,0.00031511,7]
[381547332,1756277446393,-151.0,0.00031511,7]
[381547334,1756277446402,-151.0,0.00031511,7]
[381547336,1756277446411,-151.0,0.00031511,7]
[381547338,1756277446421,-194.813698,0.00031511,7]
[381547341,1756277446431,-151.0,0.00031511,7]
[381547343,1756277446441,-194.813698,0.00031511,7]
[381547345,1756277446450,-194.813698,0.00031511,7]
[381547347,1756277446459,-194.813698,0.00031511,7]
[381547348,1756277446468,-151.0,0.00031511,7]
[381547350,1756277446478,-151.0,0.00031511,7]
[381547352,1756277446487,-151.0,0.00031511,7]
[381547354,1756277446497,-151.0,0.00031511,7]
[381547356,1756277446506,-151.0,0.00031511,7]
[381547358,1756277446515,-151.0,0.00031511,7]
[381547360,1756277446524,-151.0,0.00031511,7]
[381547362,1756277446534,-152.238501,0.00031511,7]
[381547364,1756277446544,-151.0,0.00031511,7]
[381547366,1756277446553,-151.0,0.00031511,7]
[381547368,1756277446562,-151.0,0.00031511,7]
[381547370,1756277446571,-151.0,0.00031511,7]
[381547372,1756277446581,-151.0,0.00031511,7]
[381547374,1756277446590,-151.0,0.00031511,7]
[381547376,1756277446600,-151.0,0.00031511,7]
[381547378,1756277446609,-151.0,0.00031511,7]
[381547380,1756277446619,-179.595668,0.00031511,7]
[381547382,1756277446628,-2602.51,0.00031538,60]
[381547384,1756277446638,-549.78588343,0.00031548,60]
[381547386,1756277446647,-151.0,0.0003155,7]
[381547388,1756277446657,-151.0,0.0003155,7]
[381547390,1756277446666,-151.0,0.0003155,7]
[381547392,1756277446676,-151.0,0.0003155,7]
[381547394,1756277446689,-151.0,0.0003155,7]
[381547396,1756277446699,-300.677977,0.0003155,7]
[381547398,1756277446708,-300.677977,0.0003155,7]
[381547400,1756277446717,-300.677977,0.0003155,7]
[381547402,1756277446727,-151.0,0.0003155,7]
[381547404,1756277446737,-300.677977,0.0003155,7]
[381547406,1756277446746,-151.0,0.0003155,7]
[381547408,1756277446755,-300.677977,0.0003155,7]
[381547410,1756277446765,-300.677977,0.0003155,7]
[381547412,1756277446774,-300.677977,0.0003155,7]
[381547415,1756277446784,-300.677977,0.0003155,7]
[381547417,1756277446793,-151.0,0.0003155,7]
[381547418,1756277446804,-151.0,0.0003155,7]
[381547420,1756277446816,-157.69187,0.0003155,7]
[381547422,1756277446825,-157.69187,0.0003155,7]
[381547424,1756277446834,-157.69187,0.0003155,7]
[381547426,1756277446843,-157.69187,0.0003155,7]
[381547428,1756277446853,-157.69187,0.0003155,7]
[381547430,1756277446863,-157.69187,0.0003155,7]
[381547432,1756277446872,-1002.41907,0.0003155,7]
[381547434,1756277446881,-1002.41907,0.0003155,7]
[381547436,1756277446892,-157.69187,0.0003155,7]
[381547438,1756277446901,-151.0,0.0003155,7]
[381547440,1756277446910,-157.69187,0.0003155,7]
[381547442,1756277446920,-151.0,0.0003155,7]
[381547444,1756277446930,-151.0,0.0003155,7]
[381547446,1756277446939,-151.0,0.0003155,7]
[381547448,1756277446948,-235.914186,0.0003155,7]
[381547450,1756277446957,-235.914186,0.0003155,7]
[381547452,1756277446966,-235.914186,0.0003155,7]
[381547454,1756277446976,-235.914186,0.0003155,7]
[381547456,1756277446985,-235.914186,0.0003155,7]
[381547458,1756277446995,-235.914186,0.0003155,7]
[381547460,1756277447004,-1002.41907,0.0003155,7]
[381547462,1756277447014,-235.914186,0.0003155,7]
[381547464,1756277447023,-1002.41907,0.0003155,7]
[381547466,1756277447033,-235.914186,0.0003155,7]
[381547468,1756277447043,-1002.41907,0.0003155,7]
[381547470,1756277447052,-1002.41907,0.0003155,7]
[381547472,1756277447061,-151.0,0.0003155,7]
[381547474,1756277447071,-152.168955,0.0003155,7]
[381547476,1756277447080,-1002.41907,0.0003155,7]
[381547478,1756277447089,-1002.41907,0.0003155,7]
[381547480,1756277447098,-151.0,0.0003155,7]
[381547482,1756277447108,-151.0,0.0003155,7]
[381547483,1756277447118,-151.0,0.0003155,7]
[381547486,1756277447127,-151.0,0.0003155,7]
[381547487,1756277447137,-151.0,0.0003155,7]
[381547489,1756277447146,-165.229524,0.0003155,7]
[381547491,1756277447155,-1072.102854,0.0003155,7]
[381547493,1756277447164,-1072.102854,0.0003155,7]
[381547495,1756277447173,-1072.102854,0.0003155,7]
[381547497,1756277447182,-1072.102854,0.0003155,7]
[381547499,1756277447191,-151.0,0.0003155,7]
[381547501,1756277447200,-1072.102854,0.0003155,7]
[381547503,1756277447209,-1072.102854,0.0003155,7]
[381547505,1756277447219,-1072.102854,0.0003155,7]
[381547507,1756277447228,-1072.102854,0.0003155,7]
[381547509,1756277447237,-151.0,0.0003155,7]
[381547511,1756277447247,-151.0,0.0003155,7]
[381547513,1756277447256,-90189.13527278,0.0003155,2]
[381547515,1756277447266,-300.0,0.0003155,2]
[381547517,1756277447275,-3876.67444437,0.0003155,2]
[381547519,1756277447285,-808.84718051,0.0003155,2]
[381547521,1756277447295,-791.07086293,0.0003155,32]
[381547523,1756277447304,-254.52033887,0.0003155,2]
[381547525,1756277447313,-296.56388014,0.0003155,2]
[381547527,1756277447322,-326.66294407,0.0003155,2]
[381547529,1756277447332,-152.32685095,0.0003155,7]
[381547531,1756277447341,-291.53888322,0.0003155,2]
[381547533,1756277447351,-51673.48665892,0.0003155,2]
[381547535,1756277447361,-636.56297801,0.0003155,2]
[381547537,1756277447370,-1360.02520508,0.0003155,2]
[381547538,1756277447380,-5981.28484202,0.0003155,7]
[381547539,1756277447389,-156.45495337,0.0003155,2]
[381547541,1756277447398,-15003.8639197,0.0003155,2]
[381547542,1756277447408,-3051.49205965,0.0003155,2]
[381547543,1756277447417,-6286.25326516,0.0003155,2]
[381547544,1756277447426,-157.46379273,0.0003155,2]
[381547545,1756277447435,-706.68354396,0.0003155,2]
[381547546,1756277447445,-1714.64277342,0.0003155,2]
[381547547,1756277447454,-49869.05305819,0.0003155,2]
[381547548,1756277447464,-1867.24659849,0.0003155,2]
[381547549,1756277447474,-507.05777697,0.0003155,2]
[381547550,1756277447484,-40000.0,0.0003155,2]
[381547551,1756277447493,-179.11051836,0.0003155,2]
[381547552,1756277447503,-467.36222109,0.0003155,2]
[381547553,1756277447513,-30417.16399586,0.0003155,2]
[381547554,1756277447523,-981.74521656,0.0003155,2]
[381547555,1756277447532,-188.97070192,0.0003155,2]
[381547556,1756277447541,-1190.13897366,0.0003155,2]
[381547557,1756277447551,-1395.02991644,0.0003155,2]
[381547558,1756277447561,-5887.42621866,0.0003155,2]
[381547559,1756277447571,-10672.01861662,0.0003155,2]
[381547560,1756277447581,-650.50711888,0.0003155,2]
[381547561,1756277447590,-903.53937549,0.0003155,2]
[381547562,1756277447600,-54428.86157479,0.0003155,30]
[381547563,1756277447609,-477.15716056,0.0003155,2]
[381547564,1756277447619,-2920.0,0.0003155,2]
[381547565,1756277447627,-2038.83462316,0.0003155,2]
[381547566,1756277447636,-163.13112938,0.0003155,2]
[381547567,1756277447646,-384.59387798,0.0003155,2]
[381547568,1756277447655,-201.24539244,0.0003155,2]
[381547569,1756277447665,-4909.0767196,0.0003155,5]
[381547570,1756277447675,-2345.74690566,0.0003155,2]
[381547571,1756277447684,-3144.16748228,0.0003155,2]
[381547572,1756277447694,-166.42366971,0.0003155,2]
[381547573,1756277447703,-217538.1754262,0.0003155,2]
[381547574,1756277447712,-150.17904804,0.0003155,2]
[381547575,1756277447722,-100140.62340114,0.0003155,2]
[381547576,1756277447731,-160.4830633,0.0003155,2]
[381547577,1756277447741,-5179.69427604,0.0003155,2]
[381547578,1756277447750,-258.2583958,0.0003155,2]
[381547579,1756277447759,-157.1,0.0003155,2]
[381547580,1756277447769,-500.0,0.0003155,2]
[381547581,1756277447779,-500.0,0.0003155,2]
[381547582,1756277447789,-500.0,0.0003155,2]
[381547583,1756277447798,-500.0,0.0003155,2]
[381547584,1756277447810,-500.0,0.0003155,2]
[381547585,1756277447821,-500.0,0.0003155,2]
[381547586,1756277447830,-500.0,0.0003155,2]
[381547587,1756277447839,-500.0,0.0003155,2]
[381547588,1756277447849,-500.0,0.0003155,2]
[381547589,1756277447858,-500.0,0.0003155,2]
[381547590,1756277447867,-500.0,0.0003155,2]
[381547591,1756277447876,-500.0,0.0003155,2]
[381547592,1756277447886,-500.0,0.0003155,2]
[381547593,1756277447895,-500.0,0.0003155,2]
[381547594,1756277447904,-500.0,0.0003155,2]
[381547595,1756277447913,-500.0,0.0003155,2]
[381547596,1756277447923,-314.66299066,0.0003155,2]
[381547597,1756277447932,-250.0,0.0003155,10]
[381547598,1756277447941,-378.20258,0.0003155,10]
[381547599,1756277447950,-750.0,0.0003156,5]
[381547600,1756277447959,-866.0,0.00031565,2]
[381547601,1756277447969,-206.706763,0.000316,30]
[381547602,1756277447978,-15549.47,0.000316,2]
[381547603,1756277447987,-407.95831418,0.0003168,2]
[381547604,1756277447997,-1627.0,0.00031688,2]
[381547605,1756277448006,-371.0,0.00031732,2]
[381547606,1756277448016,-152.043175,0.00031772,7]
[381547607,1756277448025,-151.0,0.00031772,7]
[381547608,1756277448035,-245.069521,0.00031772,7]
[381547609,1756277448044,-151.0,0.00031772,7]
[381547610,1756277448054,-151.0,0.000318,7]
[381547611,1756277448064,-151.0,0.000318,7]
[381547612,1756277448073,-151.0,0.000318,7]
[381547613,1756277448083,-151.0,0.000318,7]
[381547614,1756277448092,-151.0,0.000318,7]
[381547615,1756277448102,-151.0,0.000318,7]
[381547616,1756277448111,-163.036903,0.000318,7]
[381547617,1756277448120,-500.0,0.000318,7]
[381547618,1756277448130,-500.0,0.000318,7]
[381547619,1756277448139,-500.0,0.000318,7]
[381547620,1756277448149,-500.0,0.000318,7]
[381547621,1756277448158,-151.0,0.000318,7]
[381547622,1756277448168,-4980.37,0.000318,7]
[381547623,1756277448177,-194.813698,0.000318,7]
[381547624,1756277448187,-151.0,0.000318,7]
[381547625,1756277448196,-194.813698,0.000318,7]
[381547626,1756277448206,-194.813698,0.000318,7]
[381547627,1756277448216,-194.813698,0.000318,7]
[381547628,1756277448226,-151.0,0.000318,7]
[381547629,1756277448235,-151.0,0.000318,7]
[381547630,1756277448244,-151.0,0.000318,7]
[381547631,1756277448254,-2000.0,0.00031808,5]
[381547632,1756277448264,-866.0,0.00031838,2]
[381547633,1756277448273,-206.706763,0.00031853,3]
[381547634,1756277448284,-173.533168,0.00031853,3]
[381547635,1756277448294,-173.556485,0.00031853,3]
[381547636,1756277448304,-15017.16987434,0.000319,2]
[381547637,1756277448314,-371.0,0.00031942,2]
[381547638,1756277448324,-987.109,0.00031974,2]
[381547639,1756277448334,-638.0,0.00031974,2]
[381547640,1756277448344,-2157.0,0.00031974,2]
[381547641,1756277448353,-6948.53210592,0.00031986,17]
[381547642,1756277448363,-206.706763,0.00031995,60]
[381547643,1756277448372,-2822.0,0.00032,2]
[381547644,1756277448381,-42824.37144301,0.00032,7]
[381547651,1756277448940,-162222.41091193,0.00032,7]
[381547652,1756277448950,-151.0,0.00032,7]
[381547653,1756277448959,-151.533464,0.00032,7]
[381547654,1756277448969,-151.0,0.00032,7]
[381547656,1756277448979,-1000.0,0.00032,30]
[381547658,1756277448989,-997.0,0.00032,30]
[381547660,1756277448998,-207.79735,0.00032,7]
[381547662,1756277449008,-207.79735,0.00032,7]
[381547663,1756277449017,-207.79735,0.00032,7]
[381547664,1756277449028,-207.79735,0.00032,7]
[381547665,1756277449041,-71480.97,0.00032,7]
[381547666,1756277449050,-165.477966,0.00032,7]
[381547667,1756277449060,-165.477966,0.00032,7]
[381547668,1756277449069,-165.477966,0.00032,7]
[381547669,1756277449079,-165.477966,0.00032,7]
[381547670,1756277449090,-254.036978,0.00032,7]
[381547671,1756277449099,-254.036978,0.00032,7]
[381547672,1756277449109,-254.036978,0.00032,7]
[381547673,1756277449119,-254.036978,0.00032,7]
[381547675,1756277449129,-205.00087,0.00032,7]
[381547677,1756277449139,-205.00087,0.00032,7]
[381547679,1756277449149,-151.0,0.00032,7]
[381547681,1756277449159,-301.9033,0.00032,7]
[381547683,1756277449169,-181.951389,0.00032,7]
[381547685,1756277449178,-181.951389,0.00032,7]
[381547687,1756277449188,-181.951389,0.00032,7]
[381547689,1756277449198,-181.951393,0.00032,7]
[381547691,1756277449207,-151.0,0.00032,7]
[381547693,1756277449216,-202.037811,0.00032,7]
[381547695,1756277449226,-417.15472785,0.00032,30]
[381547696,1756277449235,-216.14835892,0.00032,30]
[381547699,1756277449246,-529.56067766,0.00032,30]
[381547700,1756277449255,-425.44119842,0.00032,30]
[381547702,1756277449265,-242.15909246,0.00032003,2]
[381547704,1756277449274,-1260.0,0.00032027,2]
[381547706,1756277449285,-354.66808899,0.00032069,49]
[381547708,1756277449295,-151.0,0.00032069,7]
[381547710,1756277449304,-151.0,0.00032069,7]
[381547712,1756277449314,-151.0,0.00032069,7]
[381547714,1756277449323,-151.0,0.00032069,7]
[381547716,1756277449332,-151.0,0.00032069,7]
[381547718,1756277449342,-151.0,0.00032069,7]
[381547720,1756277449351,-6989.83,0.000321,7]
[381547722,1756277449361,-850.0,0.00032108,5]
[381547724,1756277449370,-866.0,0.00032112,2]
[381547727,1756277449380,-1152.0,0.00032213,2]
[381547729,1756277449389,-200.0,0.00032247,120]
[381547731,1756277449399,-866.0,0.00032386,2]
[381547732,1756277449408,-371.0,0.00032387,2]
[381547733,1756277449417,-700.0,0.0003255,2]
[381547734,1756277449427,-1360.0,0.00032575,2]
[381547735,1756277449436,-735.77020053,0.00032656,5]
[381547736,1756277449446,-866.0,0.0003266,2]
[381547737,1756277449455,-371.0,0.00032663,2]
[381547738,1756277449464,-206.706763,0.00032688,30]
[381547739,1756277449474,-371.0,0.00032726,2]
[381547740,1756277449484,-371.0,0.00032751,2]
[381547741,1756277449493,-200.0,0.00032775,120]
[381547742,1756277449504,-1627.0,0.00032786,2]
[381547743,1756277449513,-15549.47,0.000328,2]
[381547744,1756277449523,-151.0,0.000328,7]
[381547745,1756277449533,-151.0,0.000328,7]
[381547746,1756277449542,-300.677977,0.000328,7]
[381547747,1756277449551,-300.677977,0.000328,7]
[381547748,1756277449560,-204.839988,0.000328,7]
[381547749,1756277449570,-300.677977,0.000328,7]
[381547750,1756277449579,-300.677977,0.000328,7]
[381547751,1756277449589,-151.0,0.000328,7]
[381547752,1756277449598,-157.69187,0.000328,7]
[381547753,1756277449608,-157.69187,0.000328,7]
[381547754,1756277449617,-157.69187,0.000328,7]
[381547755,1756277449627,-157.69187,0.000328,7]
[381547756,1756277449636,-156.36125,0.000328,7]
[381547757,1756277449645,-151.0,0.000328,7]
[381547758,1756277449654,-235.914186,0.000328,7]
[381547759,1756277449664,-235.914186,0.000328,7]
[381547760,1756277449673,-1002.41907,0.000328,7]
[381547761,1756277449685,-235.914186,0.000328,7]
[381547762,1756277449694,-1002.41907,0.000328,7]
[381547763,1756277449703,-235.914176,0.000328,7]
[381547764,1756277449713,-1002.41907,0.000328,7]
[381547765,1756277449723,-1002.4190652,0.000328,7]
[381547766,1756277449732,-151.0,0.000328,7]
[381547767,1756277449742,-151.0,0.000328,7]
[381547768,1756277449751,-1072.102854,0.000328,7]
[381547769,1756277449761,-1072.102854,0.000328,7]
[381547770,1756277449770,-1072.102854,0.000328,7]
[381547771,1756277449779,-1072.102844,0.000328,7]
[381547772,1756277449790,-190.124591,0.00032831,7]
[381547773,1756277449800,-190.124591,0.00032831,7]
[381547774,1756277449811,-190.124591,0.00032831,7]
[381547775,1756277449822,-190.124587,0.00032831,7]
[381547776,1756277449832,-206.706763,0.00032875,10]
[381547777,1756277449841,-508.84353882,0.00032877,5]
[381547778,1756277449851,-160.0,0.00032907,3]
[381547779,1756277449861,-180.41693337,0.0003292,10]
[381547780,1756277449870,-873.92059904,0.00032934,2]
[381547781,1756277449879,-161.93172649,0.00033,14]
[381547782,1756277449889,-4980.37,0.00033,7]
[381547783,1756277449898,-169.0,0.00033,14]
[381547784,1756277449908,-205.0,0.00033,14]
[381547785,1756277449917,-150.0,0.00033023,2]
[381547786,1756277449926,-202.85787161,0.00033099,10]
[381547787,1756277449936,-151.0,0.000331,7]
[381547788,1756277449946,-151.0,0.000331,7]
[381547789,1756277449955,-151.0,0.000331,7]
[381547790,1756277449964,-151.0,0.000331,7]
[381547791,1756277449974,-151.0,0.000331,7]
[381547792,1756277449983,-151.0,0.000331,7]
[381547793,1756277449992,-151.0,0.000331,7]
[381547794,1756277450002,-151.0,0.000331,7]
[381547795,1756277450012,-159.499912,0.000331,7]
[381547796,1756277450021,-151.0,0.000331,7]
[381547797,1756277450030,-151.0,0.000331,7]
[381547798,1756277450041,-151.0,0.000331,7]
[381547799,1756277450050,-1460.0,0.00033123,2]
[381547800,1756277450059,-205.0,0.00033151,30]
[381547801,1756277450069,-528.693496,0.00033165,2]
[381547802,1756277450078,-4116.80052951,0.00033189,5]
[381547803,1756277450087,-71480.97,0.000332,14]
[381547804,1756277450097,-194.813698,0.000332,7]
[381547805,1756277450106,-151.0,0.000332,7]
[381547806,1756277450115,-194.813698,0.000332,7]
[381547807,1756277450124,-194.813698,0.000332,7]
[381547808,1756277450134,-194.813698,0.000332,7]
[381547809,1756277450143,-151.0,0.000332,7]
[381547810,1756277450152,-151.0,0.000332,7]
[381547811,1756277450162,-151.0,0.000332,7]
[381547812,1756277450171,-150.0,0.00033309,2]
[381547813,1756277450180,-251.11897888,0.00033372,2]
[381547814,1756277450189,-6989.83,0.000334,7]
[381547815,1756277450199,-206.706763,0.00033446,7]
[381547816,1756277450208,-5000.0,0.00033564,4]
[381547817,1756277450218,-261.37,0.00033595,2]
[381547818,1756277450227,-160.0,0.00033627,4]
[381547819,1756277450238,-1560.0,0.00033671,2]
[381547820,1756277450247,-32973.2979769,0.00033699,2]
[381547821,1756277450257,-151.0,0.00033699,7]
[381547822,1756277450266,-164.468624,0.00033699,7]
[381547823,1756277450276,-173.618911,0.00033699,7]
[381547824,1756277450285,-189.288119,0.00033699,7]
[381547825,1756277450295,-151.0,0.00033699,7]
[381547826,1756277450304,-500.0,0.00033699,7]
[381547827,1756277450314,-500.0,0.00033699,7]
[381547828,1756277450323,-500.0,0.00033699,7]
[381547829,1756277450333,-500.0,0.00033699,7]
[381547830,1756277450343,-151.0,0.00033699,7]
[381547831,1756277450352,-6948.53210592,0.00033712,21]